Cogmind - Beta 15 @@@ ROGUE MODE // 2025.07.15 @ 20:05:07 Player: Juan Result: Destroyed by S-10 Pest with Light Assault Rifle Performance ------------- Evolutions (2) 1000 Regions Visited (4) 800 Robots Destroyed (43) 215 Value Destroyed (1113) 1113 Prototype IDs (4) 80 Alien Tech Used (0) 0 Bonus (25) 25 TOTAL SCORE: 3233 Bonus ------- Follower Combat Kills 25 Cogmind --------- Core Integrity 0/550 Matter 300/300 Energy 6/100 System Corruption 0% Temperature Cool (0) Movement Core (100) Ox1 Location -8/Materials Parts ------- > --- POWER (1) -------- (None) > --- PROPULSION (3) --- (None) > --- UTILITY (5) ------ (None) > --- WEAPON (2) ------- Heavy Particle Cannon > --- INVENTORY (5) ---- Aluminum Leg Improved Heat Sink Heavy Particle Cannon Heavy Particle Cannon Heavy Assault Rifle Peak State ------------ > --- POWER ------------ Light Angular Momentum Engine > --- PROPULSION ------- Light Treads Light Treads > --- UTILITY ---------- Heat Sink Large Storage Unit Experimental Sensor Array Light Armor Plating Splice Drone Bay > --- WEAPON ----------- Heavy Particle Cannon Heavy Particle Cannon > --- INVENTORY -------- Aluminum Leg Improved Aluminum Leg Improved Aluminum Leg Large Storage Unit EM Pulse Cannon Heavy Particle Cannon Heavy Particle Cannon [Rating: 33] Favorites ----------- Power Light Ion Engine Engine Light Ion Engine Power Core Light Nuclear Core Propulsion Light Treads Treads Light Treads Leg Aluminum Leg Hover Unit Backup Propulsion I Utility Small Storage Unit Device Heat Sink Storage Small Storage Unit Protection Light Armor Plating Weapon Heavy Particle Cannon Energy Gun EM Pulse Gun Energy Cannon Heavy Particle Cannon Ballistic Cannon Light Cannon Build | -11 -10 -9 -9 -8 ------- Run | Yrd Mat Mat Min Mat Slots Evolved 4 | . . 2 . 2 Power . | . . . . . Propulsion 1 | . . 1 . . Utility 3 | . . 1 . 2 Weapon . | . . . . . Parts Attached 44 | 7 8 10 1 18 Power 4 | 1 1 1 . 1 Engine 3 | 1 . 1 . 1 Core 1 | . 1 . . . Reactor . | . . . . . Propulsion 14 | 2 2 4 . 6 Treads 5 | 2 . 3 . . Leg 9 | . 2 1 . 6 Wheel . | . . . . . Hover . | . . . . . Flight . | . . . . . Utility 14 | 1 3 3 1 6 Device 8 | . 2 1 1 4 Storage 4 | 1 . 1 . 2 Processor . | . . . . . Hackware . | . . . . . Protection 2 | . 1 1 . . Artifact . | . . . . . Weapon 12 | 3 2 2 . 5 Energy Gun 3 | 3 . . . . Energy Cannon 8 | . 1 2 . 5 Ballistic Gun . | . . . . . Ballistic Cannon 1 | . 1 . . . Launcher . | . . . . . Special Weapon . | . . . . . Impact Weapon . | . . . . . Slashing Weapon . | . . . . . Piercing Weapon . | . . . . . Special Melee Weapon . | . . . . . Unidentified Prototypes 2 | . . . 1 1 Parts Lost 18 | . . 1 . 17 Power 2 | . . . . 2 Propulsion 6 | . . 1 . 5 Utility 6 | . . . . 6 Weapon 4 | . . . . 4 Highest Loss Streak 10 | . . 1 . 10 To Critical Strikes 1 | . . . . 1 Average Backups 7 | 3 7 7 8 6 Power . | . 1 . . . Propulsion 3 | 2 4 2 3 2 Utility . | . . . 1 . Weapon 2 | . 1 4 3 3 Tool/Special . | . . . . . Unused Backups 9 | . . 2 1 6 Power . | . . . . . Propulsion 4 | . . 2 . 2 Utility 1 | . . . . 1 Weapon 4 | . . . 1 3 Tool/Special . | . . . . . Average Slot Usage (%) 95 | . 99 99 100 79 Engine 6 | . 3 2 11 6 Core 4 | . 10 8 . . Treads 25 | . 27 25 33 9 Leg 3 | . . 6 . 12 Device 17 | . 13 14 19 22 Storage 11 | . 14 11 11 9 Protection 2 | . . 7 2 3 Energy Cannon 17 | . 13 20 22 16 Ballistic Cannon 4 | . 12 1 . . Peak Build Rating 33 | 6 9 17 21 33 Average Rating 15 | 4 8 15 18 23 On Entrance 10 | . 6 9 14 21 Naked Turns . | . . . . . Heaviest Build 54 | 12 17 26 29 54 Greatest Support 60 | 40 40 60 60 60 Greatest Overweight (x) 9 | . 2 1 . 9 Average Overweight (x) . | . . . . . Largest Inventory Capacity 15 | 8 8 8 8 15 Average Capacity 9 | 6 8 8 8 14 Most Carried 10 | 6 8 8 8 10 Average Carried 7 | 4 7 7 7 6 Final Capacity 8 | 8 8 8 8 5 Final Carried 8 | 6 8 8 8 5 Class Distribution -------------------- 54% | Scavenger-Mutant 45% | Mutant Dominant Class ---------------- Mutant | -10/Materials Scavenger-Mutant | -9/Materials Scavenger-Mutant | -9/Mines Scavenger-Mutant | -8/Materials Resources | -11 -10 -9 -9 -8 ----------- Run | Yrd Mat Mat Min Mat Matter Collected 1105 | 232 327 186 69 291 Remotely . | . . . . . Salvage Created 1375 | . 496 274 175 430 Parts 93 | . 34 24 15 20 Haulers Intercepted 1 | . 1 . . . Recyclers Shooed 1 | . . . . 1 Parts Field Recycled . | . . . . . Retrieved Matter . | . . . . . Parts Self-Destructed . | . . . . . Prevented . | . . . . . Kills | -11 -10 -9 -9 -8 ------- Run | Yrd Mat Mat Min Mat Combat Hostiles Destroyed 34 | . 11 7 7 9 Cannons 33 | . 11 7 7 8 Classes Destroyed 8 | . 5 1 1 1 Worker 3 | . 3 . . . Hauler 1 | . 1 . . . Recycler 1 | . . . 1 . Watcher 4 | . 2 2 . . Swarmer 13 | . 3 3 7 . Grunt 15 | . 8 1 . 6 Sentry 4 | . . 3 . 1 Specialist 2 | . . . . 2 Best Kill Streak 5 | . 5 3 4 2 Combat Bots Only 4 | . 3 3 4 2 Max Kills in Single Turn 2 | . 1 1 2 1 Gunslinging . | . . . . . Exploded . | . . . . . Melee . | . . . . . Uniques/NPCs Destroyed . | . . . . . Combat | -11 -10 -9 -9 -8 -------- Run | Yrd Mat Mat Min Mat Hostile Shots Fired 384 | . 63 25 60 236 Missed 98 | . 17 7 15 59 Hits 286 | . 46 18 45 177 Projectile 286 | . 46 18 45 177 Critical Strikes 10 | . 1 . 1 8 Damage Taken 3298 | . 518 184 360 2236 Core 726 | . 59 59 49 559 Absorbed by Shields . | . . . . . Regen/Repaired (Parts) 178 | . 74 . . 104 Core Remaining (%) 83 | 100 76 . 73 . Volleys Fired 101 | . 42 13 17 29 Largest 2 | . 2 2 2 2 Hottest 150 | . 100 150 150 150 Shots Fired 188 | . 84 26 34 44 Gun 3 | . 3 . . . Cannon 185 | . 81 26 34 44 Launcher . | . . . . . Special . | . . . . . Kinetic 38 | . 38 . . . Thermal 147 | . 43 26 34 44 Explosive . | . . . . . Electromagnetic 3 | . 3 . . . Robot Hit Streak 8 | . 7 8 4 6 Robot Miss Streak 6 | . 6 3 3 4 Penetration Max . | . . . . . Secondary Targets . | . . . . . Shots Hit Robots 103 | . 47 13 15 28 Core Hits 48 | . 19 9 8 12 Critical Kills 1 | . . . . 1 Critical Parts Destroyed . | . . . . . Critical Strikes 2 | . 1 . . 1 Meltdown 1 | . . . . 1 Blast 1 | . 1 . . . Melee Attacks . | . . . . . Impact . | . . . . . Slashing . | . . . . . Piercing . | . . . . . Sneak Attacks . | . . . . . Combat Hostiles . | . . . . . Follow-up Attacks . | . . . . . Damage Inflicted 2452 | . 902 400 450 700 Guns 20 | . 20 . . . Cannons 2432 | . 882 400 450 700 Explosions . | . . . . . Melee . | . . . . . Ramming . | . . . . . Kinetic 409 | . 409 . . . Thermal 2023 | . 473 400 450 700 Explosive . | . . . . . Electromagnetic 20 | . 20 . . . Impact . | . . . . . Slashing . | . . . . . Piercing . | . . . . . Highest Corruption 3 | . 3 1 1 . Average Corruption 1 | . 2 1 1 . Corruption Purged . | . . . . . Corruption Blocked . | . . . . . Effects 15 | . 8 1 6 . Message Errors 7 | . 2 1 4 . Matter Fused 4 | . 3 . 1 . Heat Flow Errors 1 | . . . 1 . Data Loss (minor) 1 | . 1 . . . Misfires 1 | . 1 . . . Weapon Failures 1 | . 1 . . . Overload Shots . | . . . . . Overflow Damage 30 | . 15 5 10 . Projectiles 30 | . 15 5 10 . Explosions . | . . . . . Melee . | . . . . . Knockbacks 4 | . 4 . . . Impact . | . . . . . Kinetic 4 | . 4 . . . Secondary . | . . . . . Self-Inflicted Damage . | . . . . . Shots . | . . . . . Rammed . | . . . . . Targets Rammed . | . . . . . Kicked . | . . . . . Crushed . | . . . . . Highest Temperature 715 | . 312 264 408 715 Average Temperature 143 | . 60 81 145 310 Received Heat Transfer 1011 | . 201 54 . 756 Effects 19 | . 1 . 1 17 Shutdowns 3 | . . . . 3 Energy Bleed 1 | . 1 . . . Interference 2 | . . . . 2 Matter Decay 3 | . . . 1 2 Short Circuit 2 | . . . . 2 Damage (minor) 3 | . . . . 3 Damage (major) 4 | . . . . 4 Damage (core) 1 | . . . . 1 Siege Activations . | . . . . . Martial Activations . | . . . . . Shielding Activations . | . . . . . Robots Disrupted . | . . . . . Combat Hostiles . | . . . . . Robots Corrupted . | . . . . . Combat Hostiles . | . . . . . Parts Fried . | . . . . . Impact Corruptions . | . . . . . Robots Melted 1 | . . . . 1 Combat Hostiles 1 | . . . . 1 Parts Melted 4 | . 1 . 2 1 Heat Transferred 3293 | . 999 592 666 1036 Parts Sabotaged . | . . . . . Parts Stolen . | . . . . . Parts Stripped . | . . . . . Power Chain Reactions . | . . . . . Alert | -11 -10 -9 -9 -8 ------- Run | Yrd Mat Mat Min Mat Maximum Alert Level . | . . . . . Low Security (%) 100 | 100 100 100 100 100 Level 1 . | . . . . . Level 2 . | . . . . . Level 3 . | . . . . . Level 4 . | . . . . . Level 5 . | . . . . . High Security . | . . . . . Max Security . | . . . . . Peak Influence 98 | . 98 74 91 65 Initial 35 | . . 35 24 27 Average 19 | . 21 34 13 15 Influence Increases 1009 | . 334 235 201 239 Destroy 0b10 Robot/C 700 | . 220 140 160 180 Destroy 0b10 Robot/NC 45 | . 30 10 5 . Destroy Leader 160 | . 56 44 20 40 Allied During Kill 1 | . . . 1 . Successful Hack 30 | . 9 16 . 5 Destroy Structure 43 | . 4 10 15 14 Partial Spotted 15 | . 15 . . . Lose Combat Pursuer 15 | . . 15 . . Influence Decreases 1009 | . 248 257 195 309 Entered New Map 134 | . . 51 40 43 Time Decay 786 | . 248 206 135 197 Lost Part 69 | . . . . 69 Lost Ally 20 | . . . 20 . Squads Dispatched 9 | . 2 1 1 5 Investigation 4 | . 2 . . 2 Extermination . | . . . . . Reinforcement 4 | . . 1 . 3 Assault 1 | . . . 1 . Garrison . | . . . . . Intercept . | . . . . . Searches Triggered . | . . . . . Construction Impeded . | . . . . . Haulers Reinforced . | . . . . . Active Scanning Responses . | . . . . . Cargo Convoy Interrupts . | . . . . . Stealth | -11 -10 -9 -9 -8 --------- Run | Yrd Mat Mat Min Mat Distress Signals 5 | . 1 2 . 2 Communications Jammed . | . . . . . Distress Signals . | . . . . . Times Spotted 74 | . 28 16 16 14 Peak Tracking Total 5 | . 4 5 4 4 Tactical Retreats 2 | . 1 1 . . Traps | -11 -10 -9 -9 -8 ------- Run | Yrd Mat Mat Min Mat Traps Triggered 4 | . 3 1 . . Indirectly . | . . . . . Trap Hack Attempts . | . . . . . Triggered . | . . . . . Disarmed . | . . . . . Reprogrammed . | . . . . . Reused . | . . . . . Traps Extracted . | . . . . . Installed . | . . . . . Triggered . | . . . . . Machines | -11 -10 -9 -9 -8 ---------- Run | Yrd Mat Mat Min Mat Machines Disabled . | . . . . . Max in Single Turn . | . . . . . Machines Repaired . | . . . . . Machines Dismantled . | . . . . . Machines Sabotaged . | . . . . . Overloaded Fab Kills . | . . . . . Hacking | -11 -10 -9 -9 -8 --------- Run | Yrd Mat Mat Min Mat Machines Accessed 11 | . 6 2 1 2 Terminals 7 | . 4 2 . 1 Fabricators . | . . . . . Repair Stations 2 | . 1 . . 1 Recycling Units 1 | . 1 . . . Scanalyzers . | . . . . . Garrison Access . | . . . . . Total Hacks 22 | . 11 6 1 4 Successful 11 | . 5 1 1 4 Failed 11 | . 6 5 . . Catastrophic 2 | . 2 . . . Database Lockouts . | . . . . . Manual 9 | . 6 1 . 2 Terminals 13 | . 6 6 . 1 Fabricators . | . . . . . Repair Stations 7 | . 4 . . 3 Recycling Units 1 | . 1 . . . Scanalyzers . | . . . . . Garrison Access . | . . . . . Terminal Hacks 4 | . 1 1 1 1 Robot Analysis 1 | . 1 . . . Prototype ID Bank 1 | . . . . 1 Open Door 1 | . . . 1 . Branch Access Points 1 | . . 1 . . Fabricator Hacks . | . . . . . Repair Station Hacks 6 | . 3 . . 3 Scan Component 3 | . 1 . . 2 Repair 2 | . 1 . . 1 Refit 1 | . 1 . . . Recycling Unit Hacks 1 | . 1 . . . Report Inventory 1 | . 1 . . . Scanalyzer . | . . . . . Garrison Access Hacks . | . . . . . Unauthorized Hacks . | . . . . . Terminals . | . . . . . Fabricators . | . . . . . Repair Stations . | . . . . . Recycling Units . | . . . . . Scanalyzers . | . . . . . Garrison Access . | . . . . . Data Cores Recovered . | . . . . . Used . | . . . . . Hacking Detections 9 | . 5 2 . 2 Full Trace Events 4 | . 2 . . 2 Feedback Events . | . . . . . Feedback Blocked . | . . . . . Robot Schematics Acquired . | . . . . . Robots Built . | . . . . . Authchips . | . . . . . Time . | . . . . . Total Robot Build Rating . | . . . . . Part Schematics Acquired . | . . . . . Parts Built . | . . . . . Authchips . | . . . . . Time . | . . . . . Total Part Build Rating . | . . . . . Parts Repaired 2 | . 1 . . 1 Time 52 | . 26 . . 26 Parts Recycled . | . . . . . Recycled Matter . | . . . . . Retrieved Matter . | . . . . . Retrieved Components . | . . . . . Parts Scanalyzed . | . . . . . Part Schematics Acquired . | . . . . . Parts Damaged . | . . . . . Bothacking | -11 -10 -9 -9 -8 ------------ Run | Yrd Mat Mat Min Mat Used RIF Installer . | . . . . . Robots Hacked . | . . . . . Non-combat . | . . . . . Combat . | . . . . . Robot Hacks Applied . | . . . . . Relay Couplers Released . | . . . . . Fabnet Peak Effective % . | . . . . . Robots Rewired . | . . . . . Allies Hacked . | . . . . . Hacks Repelled . | . . . . . Allies | -11 -10 -9 -9 -8 -------- Run | Yrd Mat Mat Min Mat Total Allies 2 | . . . 2 . Largest Group 1 | . . . 1 1 Highest-Rated Group 31 | . . . 31 31 Highest-Rated Ally 31 | . . . 31 31 Total Orders . | . . . . . Ally Attacks 6 | . . . 5 1 Total Damage 79 | . . . 79 . Kills 1 | . . . 1 . Allies Corrupted . | . . . . . Allies Melted . | . . . . . Intel | -11 -10 -9 -9 -8 ------- Run | Yrd Mat Mat Min Mat Active Infowar (turns) 578 | . 216 156 . 206 Sensors 206 | . . . . 206 ECM 372 | . 216 156 . . Robot Analysis Total 1 | . 1 . . . Derelict Logs Recovered 2 | . . . 2 . Drone Launches 2 | . . . 2 . Drone Recoveries 2 | . . . 2 . Exploration | -11 -10 -9 -9 -8 ------------- Run | Yrd Mat Mat Min Mat Turns Passed 3333 | 71 1085 545 1004 628 Spaces Moved 1684 | 38 562 310 574 200 Core 11 | 5 . . . 6 Treads 1468 | 33 543 230 574 88 Legs 204 | . 18 80 . 106 Wheels . | . . . . . Hover 1 | . 1 . . . Flight . | . . . . . Fastest Speed 50 | 50 120 120 160 110 Average Speed 160 | 145 158 149 160 186 Slowest Speed 500 | 160 260 190 160 500 Overloaded Moves . | . . . . . Propulsion Burnouts . | . . . . . Robots Hopped . | . . . . . Potential Cave-ins . | . . . . . Cave-ins Triggered . | . . . . . Exploration Rate (%) 42 | 4 72 27 100 9 Regions Visited 4 Branch Regions 1 Pre-discovered Areas 1 | . . . 1 . Known Exits Taken 1 | . . 1 . . Unknown Exits Taken 3 | 1 1 . 1 . Scrap Searched 1 | . . . 1 . Spaces Dug 4 | . . . 4 . Terrain Destroyed 38 | . . 9 16 13 Melee . | . . . . . Projectile 38 | . . 9 16 13 AOE . | . . . . . Terrain Rammed . | . . . . . Walls Destroyed . | . . . . . Machines Disabled . | . . . . . Actions | -11 -10 -9 -9 -8 --------- Run | Yrd Mat Mat Min Mat Total 2128 | 51 671 364 627 415 Wait 210 | . 38 7 29 136 Move 1680 | 37 561 309 573 200 Hop . | . . . . . Pick Up 27 | 7 5 5 2 8 Fast Attach 32 | 5 7 8 2 10 Attach 18 | 1 2 4 . 11 Detach 15 | . 3 2 . 10 Swap 12 | 1 4 5 . 2 Drop 33 | . 9 11 4 9 Fire 101 | . 42 13 17 29 Melee . | . . . . . Ram . | . . . . . Kick . | . . . . . Crush . | . . . . . Escape Stasis . | . . . . . Rewire . | . . . . . Trap . | . . . . . Miscellaneous . | . . . . . Route ------- -11/Scrapyard -10/Materials (discovered 4 exits: *Mat x2 / [*Min x2]) -9/Materials -9/Mines (discovered 2 exits: *Mat x2) -8/Materials (discovered 1 exit: Fac) History --------- Turn | Location | Event 10 | -11/Scrapyard | Discovered new exit (range 15) 72 | -11/Scrapyard | Entered Materials 337 | -10/Materials | Build established: Mutant 373 | -10/Materials | Discovered new exit (range 9) 634 | -10/Materials | Discovered new exit (range 16) 743 | -10/Materials | Discovered new exit (range 15) 822 | -10/Materials | Repaired Lgt. Treads 1133 | -10/Materials | Discovered new exit (range 15) 1157 | -10/Materials | Entered another Materials area 1157 | -9/Materials | Evolved 2 slots: Propulsion x1, Utility x1 1326 | -9/Materials | Identified exit to Mines 1702 | -9/Materials | Entered Mines 1751 | -9/Mines | Learned location of Storage (-7) 1800 | -9/Mines | Met a Derelict bent on vengeance 1855 | -9/Mines | Build established: Scavenger-Mutant 1893 | -9/Mines | Learned Materials stockpile data 1929 | -9/Mines | Found the Drone Emporium 1948 | -9/Mines | Found Prototype Device 1948 | -9/Mines | Identified Splice Drone Bay 2407 | -9/Mines | Found a damaged Exp. Sensor Array with a note attached 2414 | -9/Mines | Found Prototype Device 2511 | -9/Mines | Discovered new exit (range 5) 2544 | -9/Mines | Discovered new exit (range 14) 2693 | -9/Mines | Met a Derelict testing a Signal Generator 2706 | -9/Mines | Entered Materials 2706 | -8/Materials | Accompanied by 1 ally 2706 | -8/Materials | Evolved 2 slots: Utility x2 2707 | -8/Materials | Identified exit to Factory 2707 | -8/Materials | Identified Exp. Sensor Array 2827 | -8/Materials | Repaired Lgt. Treads 2960 | -8/Materials | Core integrity fell below 50% 2991 | -8/Materials | Lost 10 parts (1p3n4u2w) 3275 | -8/Materials | Lost 3 parts (2n1w) 3305 | -8/Materials | Core integrity fell below 20% 3334 | -8/Materials | Destroyed by S-10 Pest with Light Assault Rifle Last Messages --------------- 03241_ Imp. Aluminum Leg destroyed. 03242_ K-01 Serf collects debris. 03244_ Hvy. Particle Cannon destroyed. 03244_ X-57 Shotgunner destroyed. 03245_ K-01 Serf collects debris. 03260_ Acquired VSS Leg. 03262_ K-01 Serf collects debris. 03267_ R-06 Scavenger collects Hrd. Medium Armor Plating. 03269_ K-01 Serf collects debris. 03270_ R-06 Scavenger collects Hrd. Medium Armor Plating. 03274_ K-01 Serf collects debris. 03291_ Dropped Aluminum Leg. 03298_ Acquired 10 matter. 03304_ S-10 Pest destroyed. 03319_ R-06 Scavenger collects Lgt. Ion Engine. 03323_ R-06 Scavenger collects Aluminum Leg. 03327_ Imp. Heat Sink destroyed. 03330_ Critical hit (Destroy). 03330_ Imp. Heat Sink destroyed. 03333_ Dropped Lrg. Storage Unit. Map ----- +----------------------------------------------------+ | ??????????????????????????????????? | | ??????????????????????????????????? | | ??????????????????????????????????? | | ??????????????????????????????????? | | ??????????????????????????????????? | | ??????????????????????????????????? | | ??????????????????????????????????? | | ??????????????????????????????????? | | ??????????????????????????????????? | | ?????????????????? ???????????????? | | ???????????? ##### ?????????????? | | ?????????? #????????????? | | ?????????? #????????????? | | ?????????? #?##########?? | | ??????????? #?# #?? | | ???????????# #?# """ #?? | | ?????? ??# #?# """"" #?? | | ?????# ""??# #?# """"" #?? | | ?????# T"??# #?# """"" #?? | | ?????# ""??# #?# "" #?? | | ?????# ?? ### #?? | | ?????? !! ???## ### #?? | | ???????!!s???#" ###% #?? | | ????????! ###?# [##+#+######? | | ?????#####s=###% = [% # ! #? | | ?????+ =@][[s[= # #? | | ?????######;;##### + ] #? | | ??????????####???# ## #? | | ?????????????????## #### ## #? | | ???????????######?# #?## #######? | | ??????????##! !### ####+######?? | | ??????????#! ! !## ##= *[ #?? | | ??????????# ## ## ! #?? | | ?????????## # # =#?? | | ?????????# # #?? | | ?????????# T + !! #?? | | ?????????+ #""" !! #?? | | ?????????# ##### #"R ! #?? | | ?????????# #???#######""" #?? | | ?????????#####?????????# #?? | | ???????????????????????##########?? | | ??????????????????????????????????? | | ??????????????????????????????????? | | ??????????????????????????????????? | | ??????????????????????????????????? | | | | | | | | | | | +----------------------------------------------------+ Best States ------------- Heat Dissipation 73 Energy Generation 18 Energy Capacity 160 Matter Stores 300 Matter Capacity 450 Sight Range 16 Robot Scan Range 20 Terrain Scan Density 10 ECM Strength 1 Armor Coverage 150 Utility Shielding 33 Evasion (%) 55 Recoil Reduction 3 Item Schematics ----------------- None Robot Schematics ------------------ None Fabricated ------------ Nothing Repaired ---------- Lgt. Treads | 47% | -10/Materials Lgt. Treads | 25% | -8/Materials Alien Tech Used ----------------- None Achievements -------------- None Challenges ------------ None Game ------ Seed ShockMiniMonowheel Manual? 0 Play Time 00:52:17 Cumulative 19.5 hours Start 2025.07.09 @ 10:22:52 End 2025.07.15 @ 20:05:07 Sessions 8 Manual Loads 0 Difficulty Rogue Special Mode None Game No. 22 Rogue 22 Adventurer 0 Explorer 0 Win Type - Total 0 Types 0/0/0/0/0/0/0/0/0/0 Lore% 10 Gallery% 17 Achievement% 16 Wizard Run 0 Options --------- Layout 0 ASCII 0 Keyboard 1 Movement Vi Keybinds 0 Fullscreen 2 Font 24/X11 Map View 76x50 Zoom Use 0% Tactical HUD 1 Map Filters NONE Filters NONE Steam 1 RUN: 1ad44689-cd47-4eb8-92ab-131469f54820